{"text_format":"1","workbook":"xlsx","n_sheets":4,"sheets":["様式","プルダウンリスト","記載要領（簡易版）","記載要領(詳細版）"],"not_rendered":{"charts":0,"images":75,"macros":1,"external_links":0,"defined_names":5,"comments":0,"pivot_tables":0},"unopened":[],"bounds":{"document_bytes":16777216,"sheet_cells":100000,"rows_first":2000,"rows_last":500,"rows_between":2000,"halvings":0,"cell_chars":16384,"cell_head_chars":4096},"cells_cut":0,"cells_raw":0,"read":"whole","date_system":"1900"}

{"sheet":"様式","index":0,"n_rows":56,"n_cols":35,"rows_kept":56,"cut":false,"hidden":false,"merged":[[54,12,54,19],[49,9,49,11],[49,25,49,28],[51,25,51,28],[50,1,50,8],[49,15,49,16],[53,1,53,2],[48,1,48,4],[53,3,53,8],[53,9,53,11],[52,12,52,19],[52,24,52,33],[53,18,53,19],[53,21,53,24],[53,25,53,28],[53,12,53,13],[53,15,53,16],[52,1,52,8],[51,9,51,11],[37,17,37,18],[39,20,39,21],[54,24,54,33],[50,12,50,19],[40,19,40,20],[41,15,41,16],[41,18,41,19],[41,21,41,22],[40,27,40,28],[53,30,53,33],[37,30,37,31],[39,23,39,24],[39,16,39,17],[41,24,41,34],[51,30,51,33],[51,21,51,24],[45,8,45,34],[50,24,50,33],[42,27,42,28],[42,19,42,20],[49,30,49,33],[44,23,44,30],[44,8,44,12],[54,1,54,8],[44,2,44,7],[43,22,43,23],[51,18,51,19],[51,1,51,2],[51,3,51,8],[51,15,51,16],[49,1,49,2],[49,18,49,19],[49,21,49,24],[51,12,51,13],[49,3,49,8],[45,2,45,7],[49,12,49,13],[41,2,41,7],[42,0,43,0],[42,1,43,1],[42,2,43,7],[42,17,42,18],[43,8,43,11],[43,12,43,13],[43,15,43,16],[43,19,43,20],[42,8,42,16],[36,0,37,0],[36,1,37,1],[40,2,40,7],[36,10,36,11],[33,0,35,0],[38,1,39,1],[37,8,37,9],[36,2,37,7],[39,8,39,9],[39,10,39,11],[33,2,35,7],[33,8,33,11],[38,2,39,7],[36,8,36,9],[33,1,35,1],[38,0,39,0],[35,8,35,11],[38,8,38,34],[39,26,39,27],[39,29,39,30],[40,17,40,18],[37,26,37,27],[37,19,37,20],[33,20,33,21],[26,0,27,0],[28,0,32,0],[31,8,31,9],[32,8,32,9],[32,10,32,11],[32,13,32,14],[13,2,16,7],[13,0,16,0],[13,1,16,1],[17,0,19,0],[17,1,18,1],[17,2,17,7],[18,2,18,7],[19,2,19,7],[20,8,20,11],[28,1,32,1],[26,2,27,7],[26,1,27,1],[19,8,19,34],[20,12,20,18],[20,19,20,20],[20,27,20,28],[29,20,29,25],[29,26,29,27],[39,13,39,14],[39,32,39,34],[30,13,30,14],[25,8,25,9],[36,26,36,27],[36,31,36,32],[32,22,32,23],[28,22,28,23],[28,26,28,27],[25,19,25,34],[29,32,29,34],[33,22,33,23],[31,19,31,20],[30,19,30,20],[32,19,32,20],[33,18,33,19],[37,32,37,34],[35,12,35,13],[35,15,35,16],[35,19,35,20],[35,22,35,23],[27,28,27,33],[25,11,25,13],[25,15,25,17],[37,10,37,11],[37,12,37,13],[36,13,36,14],[12,8,12,34],[5,25,5,34],[2,32,2,33],[3,25,3,34],[25,2,25,7],[23,29,23,33],[8,1,8,4],[37,28,37,29],[8,25,8,26],[22,1,24,1],[22,2,24,7],[22,8,22,11],[22,12,22,34],[23,8,24,11],[23,16,23,19],[23,20,23,23],[36,17,36,18],[34,8,34,11],[34,18,34,19],[34,20,34,21],[34,22,34,34],[17,8,17,25],[4,25,4,34],[18,26,18,27],[18,28,18,29],[8,32,8,34],[6,32,6,34],[5,1,5,14],[21,2,21,7],[21,8,21,34],[2,1,4,20],[6,4,6,5],[6,28,6,30],[3,21,3,24],[4,21,4,24],[2,29,2,30],[18,8,18,25],[16,24,16,33],[20,2,20,7],[12,2,12,7],[1,10,1,34],[2,26,2,27],[0,1,0,33],[5,21,5,24],[6,21,6,23],[7,21,7,24],[6,1,6,3],[6,6,6,7],[6,25,6,26],[2,24,2,25],[6,9,6,10],[6,12,6,13],[7,25,7,34],[1,1,1,8],[7,5,7,14],[7,1,7,4],[5,15,9,20],[8,21,8,24],[8,28,8,30],[8,5,8,6],[8,8,8,10],[8,12,8,14],[9,21,9,34],[31,10,31,11],[31,31,31,34],[32,31,32,34],[23,24,23,28],[29,28,29,30],[24,24,24,32],[30,31,30,34],[28,32,28,33],[30,28,30,29],[31,28,31,29],[32,28,32,29],[33,28,33,29],[35,28,35,29],[43,28,43,29],[55,1,55,34],[30,22,30,23],[31,22,31,23],[29,8,29,13],[29,14,29,15],[28,24,28,25],[31,13,31,14],[28,18,28,19],[29,16,29,18],[33,12,33,17],[33,31,33,34],[37,14,37,16],[36,28,36,29],[37,21,37,22],[36,22,36,23],[36,19,36,20],[37,23,37,25],[28,2,32,7],[28,20,28,21],[30,10,30,11],[30,8,30,9]]}
[null,"就労証明書"]
[null,"豊田市長",null,null,null,null,null,null,null,"宛"]
[null,null,null,null,null,null,null,null,null,null,null,null,null,null,null,null,null,null,null,null,null,"証明日",null,null,"西暦",null,null,null,"年",null,null,"月",null,null,"日"]
[null,null,null,null,null,null,null,null,null,null,null,null,null,null,null,null,null,null,null,null,null,"事業所名"]
[null,null,null,null,null,null,null,null,null,null,null,null,null,null,null,null,null,null,null,null,null,"代表者名"]
[null,"【民生･児童委員証明】",null,null,null,null,null,null,null,null,null,null,null,null,null,null,null,null,null,null,null,"所在地"]
[null,"証明日",null,null,"西暦",null,null,null,"年",null,null,"月",null,null,"日",null,null,null,null,null,null,"電話番号",null,null,null,null,null,"―",null,null,null,"―"]
[null,"民生・児童委員",null,null,null,null,null,null,null,null,null,null,null,null,null,null,null,null,null,null,null,"担当者名"]
[null,"電話番号",null,null,null,null,null,"―",null,null,null,"―",null,null,null,null,null,null,null,null,null,"記載者連絡先",null,null,null,null,null,"―",null,null,null,"―"]
[null,"下記の内容について、事実であることを証明いたします。"]
[null,"※本証明書の内容について、就労先事業者等に無断で作成し又は改変を行ったときには、刑法上の罪に問われる場合があります。"]
[]
[null,"No.","項目",null,null,null,null,null,"記載欄"]
[null,1,"業種",null,null,null,null,null,"　"]
[]
[]
[null,null,null,null,null,null,null,null,"　",null,null,null,null,null,null,null,null,null,null,null,null,null,null,"（",null,null,null,null,null,null,null,null,null,null,"）"]
[null,2,"フリガナ"]
[null,null,"本人氏名",null,null,null,null,null,null,null,null,null,null,null,null,null,null,null,null,null,null,null,null,null,null,null,"生年\n月日",null,null,null,"年",null,"月",null,"日"]
[null,3,"本人住所"]
[null,4,"雇用(予定)期間等",null,null,null,null,null,null,null,null,null,"期間 \n （無期の場合は雇用開始日のみ）",null,null,null,null,null,null,null,null,"年",null,"月",null,"日","～",null,null,"年",null,"月",null,"日"]
[null,5,"就労先事業所名"]
[null,6,"就労先住所等",null,null,null,null,null,"就労先住所\n（所在地）"]
[null,null,null,null,null,null,null,null,"通勤手段",null,null,null,null,null,null,null,"自宅の最寄り（",null,null,null,null,null,null,null,"）　就労先の最寄り（",null,null,null,null,null,null,null,null,null,"）"]
[null,null,null,null,null,null,null,null,null,null,null,null,null,null,null,null,null,null,null,null,null,null,null,"（",null,null,null,null,null,null,null,null,null,"）"]
[null,7,"就労先電話番号",null,null,null,null,null,null,null,"―",null,null,null,"―"]
[null,8,"雇用の形態",null,null,null,null,null,"　"]
[null,null,null,null,null,null,null,null,"　",null,null,null,null,null,null,null,null,null,null,null,null,null,null,null,null,null,null,"(",null,null,null,null,null,null,")"]
[null,9,"就労時間\n(固定就労の場合)",null,null,null,null,null,null,null,null,null,null,null,null,null,null,null,"合計\n時間",null,"月間",null,null,null,"時間",null,null,null,"分","（うち休憩時間",null,null,null,null,"分）"]
[null,null,null,null,null,null,null,null,"一月当たりの就労日数",null,null,null,null,null,"月間",null,null,null,null,"日","一週当たりの就労日数",null,null,null,null,null,"週間",null,null,null,null,"日"]
[null,null,null,null,null,null,null,null,"平日",null,null,null,"時",null,null,"分",null,null,"～",null,null,"時",null,null,"分","（うち休憩時間",null,null,null,null,"分）"]
[null,null,null,null,null,null,null,null,"土曜",null,null,null,"時",null,null,"分",null,null,"～",null,null,"時",null,null,"分","（うち休憩時間",null,null,null,null,"分）"]
[null,null,null,null,null,null,null,null,"日祝",null,null,null,"時",null,null,"分",null,null,"～",null,null,"時",null,null,"分","（うち休憩時間",null,null,null,null,"分）"]
[null,10,"就労時間\n(変則就労の場合)",null,null,null,null,null,"合計時間",null,null,null,null,null,null,null,null,null,null,null,"時間",null,null,null,"分","（うち休憩時間",null,null,null,null,"分）"]
[null,null,null,null,null,null,null,null,"就労日数",null,null,null,null,null,null,null,null,null,null,null,"日"]
[null,null,null,null,null,null,null,null,"主な就労時間帯\n・シフト時間帯",null,null,null,null,null,"時",null,null,"分","～",null,null,"時",null,null,"分","（うち休憩時間",null,null,null,null,"分）"]
[null,11,"就労実績\n※日数に有給休暇を含み、\n時間数に休憩・残業時間を含む",null,null,null,null,null,"年月",null,null,null,"年",null,null,"月",null,"年月",null,null,null,"年",null,null,"月",null,"年月",null,null,null,"年",null,null,"月"]
[null,null,null,null,null,null,null,null,null,null,"日／月",null,null,null,"時間／月",null,null,null,null,"日／月",null,null,null,"時間／月",null,null,null,null,"日／月",null,null,null,"時間／月"]
[null,12,"産前･産後休業の取得\n※取得予定を含む"]
[null,null,null,null,null,null,null,null,"期間",null,null,null,"年",null,null,"月",null,null,"日",null,"～",null,null,null,null,"年",null,null,"月",null,null,"日"]
[null,13,"育児休業の取得\n※取得予定を含む",null,null,null,null,null,null,null,null,null,null,null,null,null,null,"期間",null,null,null,"年",null,"月",null,"日","～",null,null,"年",null,"月",null,"日"]
[null,14,"復職（予定）年月日",null,null,null,null,null,null,null,null,null,null,null,null,null,null,"年",null,null,"月",null,null,"日"]
[null,15,"育児のための短時間\n勤務制度利用有無\n※取得予定を含む",null,null,null,null,null,null,null,null,null,null,null,null,null,null,"期間",null,null,null,"年",null,"月",null,"日","～",null,null,"年",null,"月",null,"日"]
[null,null,null,null,null,null,null,null,"主な就労時間帯\n・シフト時間帯",null,null,null,null,null,"時",null,null,"分","～",null,null,"時",null,null,"分","（うち休憩時間",null,null,null,null,"分）"]
[null,16,"保育士資格等",null,null,null,null,null,"資格・免許取得状況",null,null,null,null,null,null,null,null,null,null,null,null,null,null,"保育士等としての勤務実態の有無"]
[null,17,"備考欄"]
[null,null,null,null,null,null,null,null,null,null,null,null,null,null,null,null,null,null,null,null,null,null,null,null,null,null,null,null,null,"（※事業者証明欄はここまで）"]
[]
[null,"保護者記載欄"]
[null,"児童名",null,null,null,null,null,null,null,"生年月日",null,null,null,null,"年",null,null,"月",null,null,"日","本人との続柄",null,null,null,null,null,null,null,"(",null,null,null,null,")"]
[null,"施設・事業所等の利用状況等",null,null,null,null,null,null,null,null,null,"（",null,null,null,null,null,null,null,null,"）",null,null,"(",null,null,null,null,null,null,null,null,null,null,")"]
[null,"児童名",null,null,null,null,null,null,null,"生年月日",null,null,null,null,"年",null,null,"月",null,null,"日","本人との続柄",null,null,null,null,null,null,null,"(",null,null,null,null,")"]
[null,"施設・事業所等の利用状況等",null,null,null,null,null,null,null,null,null,"（",null,null,null,null,null,null,null,null,"）",null,null,"(",null,null,null,null,null,null,null,null,null,null,")"]
[null,"児童名",null,null,null,null,null,null,null,"生年月日",null,null,null,null,"年",null,null,"月",null,null,"日","本人との続柄",null,null,null,null,null,null,null,"(",null,null,null,null,")"]
[null,"施設・事業所等の利用状況等",null,null,null,null,null,null,null,null,null,"（",null,null,null,null,null,null,null,null,"）",null,null,"(",null,null,null,null,null,null,null,null,null,null,")"]
[null,"※就労証明書様式の記載要領は当BOOKの「記載要領」シートを参照してください。"]

{"sheet":"プルダウンリスト","index":1,"n_rows":108,"n_cols":12,"rows_kept":108,"cut":false,"hidden":true,"merged":[]}
["市区町村名","施設名","年","児童生年","生年・実績","予定・実績","月","日","時","分","分","休憩時間"]
[null,"302　朝日こども園",{"$f":"YEAR(TODAY())","v":2022},{"$f":"YEAR(TODAY())","v":2022},{"$f":"YEAR(TODAY())","v":2022},{"$f":"F3+1","v":2024},1,1,0,1,0,15]
[null,"306　高橋こども園",{"$f":"C2+1","v":2023},{"$f":"D2-1","v":2021},{"$f":"E2-1","v":2021},{"$f":"F4+1","v":2023},2,2,1,2,1,30]
[null,"307　童子山こども園",{"$f":"C3+1","v":2024},{"$f":"D3-1","v":2020},{"$f":"E3-1","v":2020},{"$f":"YEAR(TODAY())","v":2022},3,3,2,3,2,45]
[null,"308　トヨタこども園",2025,{"$f":"D4-1","v":2019},2019,{"$f":"F4-1","v":2021},4,4,3,4,3,60]
[null,"309　野見こども園",2026,2018,2018,{"$f":"F5-1","v":2020},5,5,4,5,4,75]
[null,"314　平山こども園",2027,2017,2017,2019,6,6,5,6,5,90]
[null,"319　山之手こども園",2028,2016,2016,2018,7,7,6,7,6,105]
[null,"321　足助まゆみこども園",2029,2015,2015,2017,8,8,7,8,7,120]
[null,"322　小渡こども園",2030,2014,2014,2016,9,9,8,9,8,135]
[null,"401　伊保こども園",2031,2013,2013,2015,10,10,9,10,9,150]
[null,"403　今こども園",2032,2012,2012,2014,11,11,10,11,10,165]
[null,"405　梅坪こども園",2033,2011,2011,2013,12,12,11,12,11,180]
[null,"406　永新こども園",2034,2010,2010,2012,null,13,12,13,12,195]
[null,"407　大畑こども園",2035,2009,2009,2011,null,14,13,14,13,210]
[null,"408　大林こども園",2036,2008,2008,2010,null,15,14,15,14,225]
[null,"410　上鷹見こども園",2037,2007,2007,2009,null,16,15,16,15,240]
[null,"411　越戸こども園",2038,2006,2006,2008,null,17,16,17,16,255]
[null,"413　駒場こども園",2039,2005,2005,2007,null,18,17,18,17,270]
[null,"417　高美こども園",2040,2004,2004,2006,null,19,18,19,18,285]
[null,"420　堤ケ丘こども園",2041,null,2003,2005,null,20,19,20,19,300]
[null,"421　寺部こども園",2042,null,2002,2004,null,21,20,21,20,315]
[null,"422　透成こども園",2043,null,2001,2003,null,22,21,22,21,330]
[null,"423　渡刈こども園",2044,null,2000,2002,null,23,22,23,22,345]
[null,"424　豊松こども園",2045,null,1999,2001,null,24,23,24,23,360]
[null,"425　中金こども園",2046,null,1998,2000,null,25,24,25,24,375]
[null,"426　中根山こども園",2047,null,1997,1999,null,26,25,26,25,390]
[null,"427　根川こども園",2048,null,1996,1998,null,27,26,27,26,405]
[null,"428　ひかりこども園",2049,null,1995,1997,null,28,27,28,27,420]
[null,"429　東広瀬こども園",2050,null,1994,1996,null,29,28,29,28,435]
[null,"430　東山こども園",2051,null,1993,1995,null,30,29,30,29,450]
[null,"431　平井こども園",null,null,1992,1994,null,31,null,31,30,465]
[null,"432　広沢こども園",null,null,1991,1993,null,null,null,32,31,480]
[null,"434　本地こども園",null,null,1990,1992,null,null,null,33,32]
[null,"435　松平こども園",null,null,1989,1991,null,null,null,34,33]
[null,"438　御船こども園",null,null,1988,1990,null,null,null,35,34]
[null,"441　若園こども園",null,null,1987,1989,null,null,null,36,35]
[null,"443　若宮こども園",null,null,1986,1988,null,null,null,37,36]
[null,"444　飯野こども園",null,null,1985,1987,null,null,null,38,37]
[null,"445　石畳こども園",null,null,1984,1986,null,null,null,39,38]
[null,"446　木瀬こども園",null,null,1983,1985,null,null,null,40,39]
[null,"447　中山こども園",null,null,1982,1984,null,null,null,41,40]
[null,"448　御作こども園",null,null,1981,1983,null,null,null,42,41]
[null,"449　大草こども園",null,null,1980,1982,null,null,null,43,42]
[null,"450　道慈こども園",null,null,1979,1981,null,null,null,44,43]
[null,"451　北栄こども園",null,null,1978,1980,null,null,null,45,44]
[null,"452　足助もみじこども園",null,null,1977,1979,null,null,null,46,45]
[null,"453　大蔵こども園",null,null,1976,1978,null,null,null,47,46]
[null,"456　則定こども園",null,null,1975,1977,null,null,null,48,47]
[null,"458　冷田こども園",null,null,1974,1976,null,null,null,49,48]
[null,"460　大沼こども園",null,null,1973,1975,null,null,null,50,49]
[null,"461　東部こども園",null,null,1972,1974,null,null,null,51,50]
[null,"462　杉本こども園",null,null,1971,1973,null,null,null,52,51]
[null,"463　稲武こども園",null,null,1970,1972,null,null,null,53,52]
[null,"465　益富こども園",null,null,1969,1971,null,null,null,54,53]
[null,"466　宮口こども園",null,null,1968,null,null,null,null,55,54]
[null,"467　上郷こども園",null,null,1967,null,null,null,null,56,55]
[null,"468　藤藪こども園",null,null,1966,null,null,null,null,57,56]
[null,"469　美和こども園",null,null,1965,null,null,null,null,58,57]
[null,"470　挙母こども園",null,null,1964,null,null,null,null,59,58]
[null,"471　若林こども園",null,null,1963,null,null,null,null,60,59]
[null,"472　住吉こども園",null,null,1962]
[null,"502　淨光こども園",null,null,1961]
[null,"503　中央こども園",null,null,1960]
[null,"505　こじまこども園",null,null,1959]
[null,"508　たかはらこども園",null,null,1958]
[null,"510　わかばこども園",null,null,1957]
[null,"511　いぼばらこども園",null,null,{"$f":"E67-1","v":1956}]
[null,"513　浄水ひかりこども園",null,null,1955]
[null,"514　豊田大和キッズこども園",null,null,1954]
[null,"515　杜のひかりこども園",null,null,1953]
[null,"516　第二わかばこども園",null,null,1952]
[null,"518　第二いぼばらこども園",null,null,1951]
[null,"601　挙母ルーテル幼稚園",null,null,1950]
[null,"602　豊田聖霊幼稚園",null,null,1949]
[null,"603　保見ケ丘幼稚園",null,null,1948]
[null,"605　井上幼稚園",null,null,1947]
[null,"608　名古屋柳城短期大学付属豊田幼稚園",null,null,1946]
[null,"609　浄水松元幼稚園",null,null,1945]
[null,"611　五ケ丘大和幼稚園",null,null,1944]
[null,"617　中山松元幼稚園",null,null,1943]
[null,"618　林丘幼稚園",null,null,1942]
[null,"619　美山幼稚園",null,null,1941]
[null,"621　豊田東丘幼稚園",null,null,1940]
[null,"622　竜神こども園",null,null,1939]
[null,"623　うねべこども園",null,null,1938]
[null,"624　堤こども園",null,null,1937]
[null,"625　東保見こども園",null,null,1936]
[null,"626　丸山こども園",null,null,1935]
[null,"627　みずほこども園",null,null,1934]
[null,"628　寿恵野こども園",null,null,1933]
[null,"629　竹村こども園",null,null,1932]
[null,"630　青松こども園",null,null,1931]
[null,"631　東海こども園",null,null,1930]
[null,"632　第二青松こども園",null,null,1929]
[null,"633　たかねこども園",null,null,1928]
[null,null,null,null,1927]
[null,null,null,null,1926]
[null,null,null,null,1925]
[null,null,null,null,1924]
[null,null,null,null,1923]
[null,null,null,null,1922]
[null,null,null,null,1921]
[null,null,null,null,1920]
[null,null,null,null,1919]
[null,null,null,null,1918]
[null,null,null,null,1917]
[null,null,null,null,1916]

{"sheet":"記載要領（簡易版）","index":2,"n_rows":56,"n_cols":9,"rows_kept":56,"cut":false,"hidden":false,"merged":[[20,0,20,12],[27,2,29,12],[30,0,31,1],[30,2,31,12],[0,0,0,12],[17,0,17,12],[21,2,22,12],[23,2,24,12],[21,0,22,1],[23,0,24,1],[25,2,26,12],[25,0,26,1],[27,0,29,1],[18,0,18,12],[19,0,19,12],[14,0,14,12],[15,0,15,12],[50,0,50,8],[51,0,51,8],[53,0,53,12],[54,0,54,12],[55,0,55,12],[16,0,16,12],[1,0,1,12],[5,0,5,12],[6,0,6,12],[9,0,9,12],[7,0,7,12],[8,0,8,12],[10,0,10,12],[12,0,12,12],[13,0,13,12],[2,0,2,12],[3,0,3,12],[4,0,4,12],[11,0,11,12],[49,7,49,8],[43,0,44,0],[43,1,44,1],[43,2,43,3],[45,0,46,0],[47,0,48,0],[49,2,49,3],[43,5,44,5],[43,6,44,6],[43,7,43,8],[45,5,46,5],[47,5,48,5]]}
["【就労証明書】記載要領(簡易版）"]
["事業所代表者様"]
["この証明書は、こども園等の利用に当たり、児童の家庭状況を把握するためのものです。"]
["必要な箇所への記入をお願いいたします。"]
["入園申込の場合は、入園日以降の状況で保育の必要性を判断するため、入園予定日時点の状況を記載してください。"]
[]
["保護者の方へ"]
["・申立書に虚偽の内容があった場合には、年度の途中での退園となります。"]
["・就労実態調査を随時行いますので、調査への御理解と御協力をお願いします。必要に応じて、収入明細等の提出を求めることがありますので、関係書類の保管をお願いいたします｡"]
["・｢就労予定｣の場合は、就労後に再提出をお願いいたします。"]
["・証明した内容に変更が生じた場合は、すみやかに園へ連絡してください。"]
["・就労証明書を提出する際の書類の有効期限は証明日が半年内のものに限ります。"]
["・プライバシーに関する事項が記載されていますので、必要な方は添付書類を含め、封筒に入れるなどして提出してください。"]
["・適正管理のために、記載内容について、事業所に確認する場合があります。押印の必要はありませんが、事業所が記入した場合その内容を保護者自身で訂正することはできません。"]
["・記入された内容は、入園基準の要件を確認する以外には使用いたしません。"]
[]
["記載時の注意点"]
[]
["〈事業所記載内容について〉"]
["№１から№１7の記載については、必ず事業所（自営業者については保護者自身）が記載すること。"]
["内容を訂正する場合は必ず二重線で消すこと。訂正印は不要。修正テープ等の利用は不可。"]
["No.4 \n　雇用（予定）期間",null,"就労者との雇用契約期間の無期・有期を選択する。無期の場合は雇用開始日のみ、有期の場合はその期間を記載する。雇用期限が有期の場合・就労予定の場合は、入園後に就労証明書を再提出する。"]
[]
["No.5～7 \n　就労先に関すること",null,"就労者が実際に就労する勤務地等の情報を記載する。勤務地等が決定していない場合は「未定」と記載し、勤務先が決まり次第、就労証明書を再提出する。"]
[]
["No.9・10・15 \n　就労時間に関すること",null,"保育要件は６０時間以上／月。実際に就労した時間（実績）ではなく、雇用契約に基づく就労時間を記載する。(残業時間を除く）育児のための短時間勤務制度を利用する場合は、その就労時間が保育要件を満たしていること。入園申込の場合は、入園日以降の状況で保育の必要性を判断するため、入園日時点での就労状況を記載する。"]
[]
["No.12～14 \n　産前産後・育児休業、\n　復職（予定）日 について",null,"産前産後・育児休業を取得（予定）している、復職（予定）日がある場合は記載する。育児休業の終期・復職（予定）日が入園日以降の日付の場合は、入園出来次第、育児休業から復帰をする予定であることをNo.17 備考欄に記載する。その場合、入園が決まり次第、復職（予定）日を決定した就労証明書を再提出する。"]
[]
[]
["No.17 \n　備考欄について",null,"特筆すべき事項を記載する。なお、育児休業の終期・復職（予定）日等、証明発行事業者が市に特に配慮を求めるものについても記載する。"]
[]
[]
["〈保護者記載欄について〉"]
["　施設・事業所等の利用状況について、これから入園・転園を希望する場合は「申込み中」にレ点を入れ第一希望園名を記載する。既に在園している場合は「利用中」にレ点を入れ在園名を記載する。"]
["兄弟児の場合は、保護者記載欄に連名で記載（兄弟が同一園の場合、複数枚の提出は不要）。ただし、途中入園申込みの際に在園児と新入園希望児がいる場合、在園児は園へ、新入園希望児は保育課へそれぞれ証明書を提出する。（コピー可）"]
[]
["〈添付書類について〉"]
["　　No.8 雇用の形態が自営業主・自営業専従者・内職に該当する場合、添付書類の有無に関わらず新規申込は可能。ただし、必要に応じて就労実態を確認する書類を依頼する場合あり。"]
["なお、新規入園申込の場合、以下の書類を添付すると入園調整時の優先度が上がる。"]
["また、翌年度の継続在園用に就労証明書を提出する場合は、添付書類の提出が必要。"]
[]
["【令和5年５月入園以前の入園申込みをする場合（申込時期：令和5年３月以前）】",null,null,null,null,"【令和5年6月入園以降の入園申込みをする場合（申込時期：令和5年4月以降）】"]
["事業形態","開業日","添付書類　※１",null,null,"事業形態","開業日","添付書類　※１"]
[null,null,"業種：農業・林業以外","業種：農業・林業",null,null,null,"業種：農業・林業以外","業種：農業・林業"]
["個人事業主","R3年12月31日以前","R３確定申告書","R３確定申告書と農地基本台帳",null,"個人事業主","R4年12月31日以前","R４確定申告書","R４確定申告書と農地基本台帳"]
[null,"R4年1月1日以降","開業届","開業届と農地基本台帳",null,null,"R5年1月1日以降","開業届","開業届と農地基本台帳"]
["法人","R3年12月31日以前","R３源泉徴収票","R３源泉徴収票と農地基本台帳",null,"法人","R4年12月31日以前","R４源泉徴収票","R４源泉徴収票と農地基本台帳"]
[null,"R4年1月1日以降","法人設立届","法人設立届と農地基本台帳",null,null,"R5年1月1日以降","法人設立届","法人設立届と農地基本台帳"]
["内職※２",null,"前年収入が504,000円以上の明細",null,null,"内職※２",null,"前年収入が504,000円以上の明細"]
["※１  必要に応じて就労実態を確認する書類を追加依頼する場合あり"]
["※２　内職要件は、新規入園の方のみ提出"]
[]
["〈家族従業者について〉"]
["　　家族従業者は、自営業主と親族関係にある生計を一にするもので、"]
["その自営業主の営む事業に無給で従事している者に限ります。"]

{"sheet":"記載要領(詳細版）","index":3,"n_rows":46,"n_cols":5,"rows_kept":46,"cut":false,"hidden":false,"merged":[[44,1,45,1],[44,2,44,3],[45,2,45,3],[27,2,27,3],[28,2,28,3],[29,2,29,3],[30,2,30,3],[31,2,31,3],[32,2,32,3],[33,2,33,3],[34,2,34,3],[35,2,35,3],[39,2,39,3],[40,2,40,3],[19,2,19,3],[23,2,23,3],[24,2,24,3],[25,1,26,1],[25,2,25,3],[26,2,26,3],[0,1,0,4],[13,2,13,3],[17,1,18,1],[17,2,17,3],[18,2,18,3]]}
["戻","【就労証明書】記載要領"]
[]
["■証明書を発行する事業者又は民生・児童委員に関する項目"]
[]
[null,"証明日",null,null,"○証明日（証明書発行日）を記載してください。\n　※年の欄は西暦で記載してください。"]
[null,"事業所名",null,null,"○証明書を発行する事業者の名称（法人名）を記載してください。\n　※証明書の発行に責任を持つ企業・組織・団体名等を記載してください。\n　※個人事業主の場合は事業者の名称を記載してください。"]
[null,"代表者名",null,null,"○代表者（法人の代表者や個人事業主）の氏名を記載してください。\n　※代表者に該当する者がいない場合又は事業所側で証明権限を代表者以外に付与している場合には、当該証明権限を有する証明書の内容に責任を持つ者の氏名を記載してください。"]
[null,"所在地",null,null,"○証明書発行事業所の住所を記載してください。\n　※証明書の証明対象となる者（以下「本人」という。）の就労先住所ではない点に注意してください。"]
[null,"電話番号",null,null,"○証明書発行事業所の電話番号を記載してください。"]
[null,"担当者名／記載者連絡先",null,null,"○証明書の内容について、自治体からの事務的な連絡を受ける場合の担当者名/電話番号を記載してください。"]
[]
["■就労先事業者に関する事項"]
[]
[null,"№1","業種",null,"○現在の就労状況について該当する項目をチェック（レ点記入）してください。\n　※いずれにも該当しない場合は「□その他」をチェック（レ点記入）し、カッコ内に簡潔に記載してください。"]
[]
["■就労者に関する項目"]
[]
[null,"№2","フリガナ／本人氏名",null,"○本人の氏名、フリガナを記載してください。"]
[null,null,"生年月日",null,"○本人の生年月日を記載してください。\n　※年の欄は西暦で記載してください。"]
[null,"№3","本人住所",null,"○本人の住所を記載してください。"]
[]
["■就労状態等に関する事項"]
[]
[null,"№4","雇用(予定)期間等",null,"○雇用期間について「□無期」か「□有期」にチェック（レ点記入）してください。\n○雇用期間について「□無期」の場合は雇用開始日のみを、「□有期」の場合はその期間を記載してください。\n　※年の欄は西暦で記載してください。\n　※契約内容の変更を予定している場合、変更前の契約が終了する日を終期として記載してください。"]
[null,"№5","就労先事業所名",null,"○右上欄に記載の事業所名（証明書発行事業所名）と異なる場合は本人が実際に働いている事業所の名称を記載してください。"]
[null,"№6","就労先住所（所在地）",null,"○右上欄に記載の所在地（証明書発行事業所住所）と異なる場合は本人が実際に働いている勤務先の住所を記載してください。\n　※実際に働いている就労場所が複数存在する場合は、主たる就労先の住所を記載するようにしてください。\n　※就労場所が存在しない場合には、自宅等就労時に本人が主として存在している場所を記載するようにしてください。"]
[null,null,"通勤手段",null,"○労災関係や通勤手当支給等の関係で事業者側で把握している通勤手段記載してください。\n　※通勤手段として「□電車・バス」を選択された場合には、自宅の最寄り駅・バス停及び就労先の最寄り駅・バス停も併せて記載してください。経由駅等は不要です。\n　※通勤手段がいずれにも該当しない場合は「□その他」をチェック（レ点記入）し、カッコ内に簡潔に記載してください。"]
[null,"№7","就労先電話番号",null,"○右上欄に記載の電話番号（証明書発行事業所の電話番号）と異なる場合は本人が実際に働いている就労先の電話番号を記載してください。"]
[null,"№8","雇用の形態",null,"○雇用の形態について該当する項目にチェック（レ点記入）してください。\n　※自営業の場合は、「自営業主」（個人事業主、経営者、代表者等）又は「自営業専従者」又は「家族従業者」（自営業主と親族関係にある生計を一にする者で、その自営業主の営む事業に無給で従事している者）のいずれかにチェック（レ点記入）してください。\n　※「契約社員」等の場合で、「会計年度任用職員」にも該当する場合は、「会計年度任用職員」にチェック（レ点記入）してください。\n　※「パート・アルバイト」「派遣社員」「契約社員」「会計年度任用職員」のいずれにも該当しない非常勤・臨時職員である場合、「非常勤・臨時職員」にチェック（レ点記入）してください。\n　※雇用の形態に該当する項目がない場合は「□その他」にチェック（レ点記入）し、簡潔に記載してください。"]
[null,"№9","就労時間\n（固定就労の場合）",null,"○「月・火・水・木・金・土・日・祝日」のうち、通常の就労日について該当する項目にチェック（レ点記入）してください。［複数選択可］\n○就労の合計時間（月間）についてを記載してください。\n　※雇用契約に基づく就労時間であり、実際に就労した時間（実績）ではありません。育児短時間勤務制度を利用している場合でも、制度利用前の就労時間数を記載してください。\n　※雇用契約上、週当たりの就労時間が定められている場合、４（週）を乗じた時間を記載してください。\n　※雇用契約上、年当たりの就労時間が定められている場合、12（月）で除した時間を記載してください。\n　※雇用契約上の就労時間であるため、残業時間は除いてください。\n　※休憩時間（就業規則等で定められている休憩に限る。）は含めてください。また、就業規則等で定められている休憩時間の月間の合計時間数についても記載してください。\n○一月当たり、一週当たりの就労日数について記載してください。\n　※雇用契約に基づく就労日数であり、実際に就労した日数（実績）ではありません。\n　※雇用契約上、月当たりの就労日数が定められている場合、週当たりの就労日数欄には、４（週）で除した日数を記載してください。\n　※雇用契約上、週当たりの就労日数が定められている場合、月当たりの就労日数欄には、４（週）を乗じた日数を記載してください。\n　※雇用契約上、年当たりの就労日数が定められている場合、月当たりの就労日数欄には12（月）で除した日数、週当たりの就労日数欄には48（週）で除した日数を記載してください。\n○就労時間帯は、「24時間表記」で記載してください。\n　※夜間勤務など日をまたぐ場合には、０時～29時の幅（例えば22時から翌朝５時まで就労する場合は「22時00分～29時00分」）で記載してください。\n○平日、土曜、日祝毎に就労時間時間帯を記載してください。\n　※休憩時間（就業規則等で定められている休憩に限る。）は含め、当該時間帯における就業規則等で定められている休憩時間数（分）についても記載してください。\n　※平日、土曜、日祝のいずれか就労がない場合は空欄で結構です。"]
[null,"№10","就労時間\n（変則就労の場合）",null,"○日々の就労時間が定められていない就労者について、雇用契約に基づく就労時間を記載してください。\n○月間又は週間の就労時間（合計）についてを記載してください。\n　※雇用契約に基づく就労時間であり、実際に就労した時間（実績）ではありません。育児短時間勤務制度を利用している場合でも、制度利用前の就業規則上の就労時間数を記載してください。\n　※雇用契約上、１日当たりの就労時間が定められている場合、５（日）を乗じて、「週間」の就労時間を記載してください。\n　※週間の労働時間を記載いただいた場合、当該時間に４を乗した時間数を月の就労時間とみなします。\n　※雇用契約上の就労時間であるため、残業時間は除いてください。\n　※休憩時間（就業規則等で定められている休憩に限る。）は含めてください。また、就業規則等で定められている休憩時間の月間又は週間の合計時間数についても記載してください。\n○一月当たり又は一週当たりの就労日数について記載してください。\n　※雇用契約に基づく就労日数であり、実際に就労した日数（実績）ではありません。\n　※雇用契約上、年当たりの就労日数が定められている場合、月当たりの就労日数欄には12（月）で除した日数、週当たりの就労日数欄には48（週）で除した日数を記載してください。\n○就労時間帯は、「24時間表記」で記載してください。\n　※夜間勤務など日をまたぐ場合には、０時～29時の幅（例えば22時から翌朝５時まで就労する場合は「22時00分～29時00分」）で記載してください。\n○主な就労時間帯・シフト時間帯について、最も可能性の高い（勤務回数の多い）時間帯を記載してください。\n　※雇用契約上、コアタイム等の定めがない場合も、想定される最も標準的な時間帯を記載するようにしてください。\n　※シフト勤務の場合は、市区町村による保育の必要性認定に必要となる場合のみ、シフト表の追加提出等を求める場合がありますので御承知おきください。"]
[null,"№11","就労実績\n※日数に有給休暇を含み\n時間数に休憩・残業時間を含む",null,"○直近３か月の１か月当たりの就労日数、就労時間数について記載してください。なお、育児休業等により直近３ヶ月において１月分の就労実績がない場合は、育児休業等取得前の（産休・育休等取得月を除いた）就労実績を記載してください。新規採用等で就労実績がない場合は今後の就労見込みを記載してください。\n　※新しい年・月から記載してください（例：○○年６月、○○年５月、○○年４月）。\n　※有給休暇の取得日は就労日数に含めてください。\n　※残業時間は就労時間数に含めてください。\n　※休憩時間（就業規則等で定められている休憩時間に限る。）は就労時間数に含めてください。\n　※育児短時間勤務制度等を利用している場合は、それらの制度利用の上での勤務実績（実際に当該月に勤務した実績）を記載してください。\n　※年の欄は西暦で記載してください。"]
[null,"№12","産前・産後休業の取得\n※取得予定を含む",null,"○産前・産後休業の取得について「□取得予定」か「□取得中」にチェック（レ点記入）してください。\n　※法令上の産前・産後休業に限らず法人独自の就業規則等に基づいた休業も含みます。\n　※終了日が確定していない場合でも終了予定日を記載するようにしてください。\n　※年の欄は西暦で記載してください。"]
[null,"№13","育児休業の取得\n※取得予定を含む",null,"○育児休業の取得について「□取得予定」か「□取得中」か「□取得済み」にチェック（レ点記入）してください。\n　※法令上の育児休業に限らず法人独自の就業規則等に基づいた休業も含みます。\n　※終期が確定していない場合でも終了予定日を記載するようにしてください。\n　※取得済みの場合は取得実績を記載してください。\n　※複数該当する場合は、証明日の状況に一番近いものを記載し、その他は備考欄に記載してください（例：取得予定又は取得中で、過去に取得した実績もある場合は、取得予定又は取得中の育児休業についてNo.13欄に記載し、過去取得分を備考欄に記載する。）。\n　※年の欄は西暦で記載してください。"]
[null,"№14","復職（予定）年月日",null,"○証明書発行事業所において取得中（又は取得予定）の育児休業等を終了し、復職する予定がある場合は「□復職予定」にチェック（レ点記入）し、復職予定年月日を記載してください。また、１年以内に証明書発行事業所において取得した育児休業等から復職済みの場合は「□復職済み」にチェック（レ点記入）し、復職年月日を記載してください。\n　※年の欄は西暦で記載してください。"]
[null,"No.15","育児のための短時間勤務制度利用有無\n※取得予定を含む",null,"○育児のための短時間勤務制度の利用により、就業規則上の通常の就労時間（No.9又はNo.10に記載の時間）より短い就労時間（就業規則上の特則等いわゆる時短勤務）とする予定である又はしている場合について、「□取得予定」か「□取得中」かにチェック（レ点記入）してください。\n\n○当該短時間勤務制度の利用（予定）期間及び当該短時間勤務制度利用時の主な就労時間帯（勤務体制変更後の就労時間帯）について記載してください。\n　※No.９又はNo.10には短時間勤務制度利用前の就労時間帯、No.15には短時間勤務制度利用後の就労時間帯を記載してください。\n　※年の欄は西暦で記載してください。"]
[]
["■その他の項目"]
[]
[null,"№16","保育士資格等",null,"○保育士資格、幼稚園教諭免許を取得している場合は、取得している資格等をチェック（レ点記入）してください。\n○保育士、幼稚園教諭、保育教諭としての勤務実態の有無について「□有」又は「□無」にチェック（レ点記入）してください。"]
[null,"No.17","備考欄",null,"○No.9やNo.10に記載の就労時間帯につき、出退勤時間の特例（就業規則上の就労時間帯の15分前に出勤しなければならない等）等、記載時間帯を超えて拘束時間が生じている場合には、その旨、この欄に記載してください。\n○No.11の給与支給実績に係る特記事項がある場合には、この欄に記載してください。\n○No.13の育児休業の取得実績等について追加記載が必要な場合は、この欄に記載してください。\n○その他特記事項があれば、この欄に記載してください。\n"]
[]
["■保護者記載欄"]
[]
[null,"保護者記載欄","児童について",null,"○児童名を記載してください。\n○児童の生年月日を記載してください。\n　※年の欄は西暦で記載してください。\n○児童について、本人（本就労証明書の被証明対象となる保護者）との続柄を記載してください。\n　※孫や里親等委託児童等の場合は、「□その他」を選択し、カッコ内に簡潔に記載してください。"]
[null,null,"施設・事業所等の利用状況等",null,"○施設・事業所等の利用状況等について、「□利用中」又は「□申込み中」にチェック（レ点記入）してください。また、施設・事業所等の名称を記載してください。\n　※施設・事業所等とは、認定こども園、保育所、幼稚園、地域型保育事業所、放課後児童クラブなどを指します。\n　※証明日時点で施設・事業所等を利用しておらず、新たに利用希望を出す場合は、第１希望の施設・事業所等の名称を記載してください。\n"]